{"text_format":"3","workbook":"xlsx","n_sheets":2,"sheets":["Sledilnik izgube teže","izračuni"],"not_rendered":{"charts":1,"defined_names":7},"read":"whole","date_system":"1900"}

{"sheet":"Sledilnik izgube teže","index":0,"n_rows":129,"n_cols":11,"rows_kept":129,"merged":[[0,5,0,9],[1,6,3,9]]}
[null,"CILJNA TEŽA","POGLED GRAFIKONA",null,null," TININA IZGUBA TEŽE"]
[{"$nulls":6},"SLEDILNIK"]
[null,{"v":172,"d":"172.0"},"TEDENSKO",{"$nulls":7}," "]
[]
[]
[{"$nulls":10}," "]
{"$rows_empty":18}
[null,"DATUM","TEŽA"]
[null,"2012-11-30",{"v":176,"d":"176.0"}]
[null,"2012-12-07",{"v":176,"d":"176.0"}]
[null,"2012-12-14",177.6]
[null,"2012-12-21",176.5]
[null,"2012-12-28",176.1]
[null,"2013-01-04",{"v":174,"d":"174.0"}]
[null,"2013-01-11",{"v":173,"d":"173.0"}]
[null,"2013-01-18",{"v":172,"d":"172.0"}]
[null,"2013-01-25",{"v":172,"d":"172.0"}]
[null,"2013-02-01",{"v":173,"d":"173.0"}]
[null,"2013-02-08",{"v":174,"d":"174.0"}]
[null,"2013-02-15",{"v":175,"d":"175.0"}]
[null,"2013-02-22"]
[null,"2013-03-01"]
[null,"2013-03-08"]
[null,"2013-03-15"]
[null,"2013-03-22"]
[null,"2013-03-29"]
[null,"2013-04-05"]
[null,"2013-04-12"]
[null,"2013-04-19"]
[null,"2013-04-26"]
[null,"2013-05-03"]
[null,"2013-05-10"]
[null,"2013-05-17"]
[null,"2013-05-24"]
[null,"2013-05-31"]
[null,"2013-06-07"]
[null,"2013-06-14"]
[null,"2013-06-21"]
[null,"2013-06-28"]
[null,"2013-07-05"]
[null,"2013-07-12"]
[null,"2013-07-19"]
[null,"2013-07-26"]
[null,"2013-08-02"]
[null,"2013-08-09"]
[null,"2013-08-16"]
[null,"2013-08-23"]
[null,"2013-08-30"]
[null,"2013-09-06"]
[null,"2013-09-13"]
[null,"2013-09-20"]
[null,"2013-09-27"]
[null,"2013-10-04"]
[null,"2013-10-11"]
[null,"2013-10-18"]
[null,"2013-10-25"]
[null,"2013-11-01"]
[null,"2013-11-08"]
[null,"2013-11-15"]
[null,"2013-11-22"]
[null,"2013-11-29"]
[null,"2013-12-06"]
[null,"2013-12-13"]
[null,"2013-12-20"]
[null,"2013-12-27"]
[null,"2014-01-03"]
[null,"2014-01-10"]
[null,"2014-01-17"]
[null,"2014-01-24"]
[null,"2014-01-31"]
[null,"2014-02-07"]
[null,"2014-02-14"]
[null,"2014-02-21"]
[null,"2014-02-28"]
[null,"2014-03-07"]
[null,"2014-03-14"]
[null,"2014-03-21"]
[null,"2014-03-28"]
[null,"2014-04-04"]
[null,"2014-04-11"]
[null,"2014-04-18"]
[null,"2014-04-25"]
[null,"2014-05-02"]
[null,"2014-05-09"]
[null,"2014-05-16"]
[null,"2014-05-23"]
[null,"2014-05-30"]
[null,"2014-06-06"]
[null,"2014-06-13"]
[null,"2014-06-20"]
[null,"2014-06-27"]
[null,"2014-07-04"]
[null,"2014-07-11"]
[null,"2014-07-18"]
[null,"2014-07-25"]
[null,"2014-08-01"]
[null,"2014-08-08"]
[null,"2014-08-15"]
[null,"2014-08-22"]
[null,"2014-08-29"]
[null,"2014-09-05"]
[null,"2014-09-12"]
[null,"2014-09-19"]
[null,"2014-09-26"]
[null,"2014-10-03"]
[null,"2014-10-10"]
[null,"2014-10-17"]
[null,"2014-10-24"]
[null,"2014-10-31"]
[null,"2014-11-07"]
[null,"2014-11-14"]
[null,"2014-11-21"]

{"sheet":"izračuni","index":1,"n_rows":108,"n_cols":17,"rows_kept":108,"hidden":true}
["***  Ta list ostane skrit ***"]
[]
[{"$f":"COUNTIF(A5:A108,FALSE)","v":13},"Obdobja","Vrednosti",{"$nulls":3},{"$f":"COUNTIF(H5:H28,\">\"&0)","v":4},"Obdobja",null,"Vrednosti"]
[null,"Teden",null,null,true,null,null,"Mesec","Konec meseca"]
[{"$f":"IF(('Sledilnik izgube teže'!C26=0)*('Sledilnik izgube teže'!C25=0),TRUE)","v":false},{"$f":"IF(A5,0,IF('Sledilnik izgube teže'!B26=0,'Sledilnik izgube teže'!B25+5,'Sledilnik izgube teže'!B26))","v":"2012-11-30"},{"$f":"'Sledilnik izgube teže'!C26","v":176},{"$f":"MIN(ObdobjaGrafikona)","v":"2012-11-30"},{"$f":"IF($E$4,CiljnaTeža,NA())","v":172},null,null,{"$f":"DATE(YEAR(B5),MONTH(B5),1)","v":"2012-11-01"},{"$f":"EOMONTH(H5,0)","v":"2012-11-30"},{"$f":"IFERROR(AVERAGEIFS(TabelaKilogramov[TEŽA],TabelaKilogramov[DATUM],\">=\"&H5,TabelaKilogramov[DATUM],\"<=\"&I5),NA())","v":176}]
[{"$f":"IF(('Sledilnik izgube teže'!C27=0)*('Sledilnik izgube teže'!C26=0),TRUE)","v":false},{"$f":"IF(A6,0,IF('Sledilnik izgube teže'!B27=0,'Sledilnik izgube teže'!B26+5,'Sledilnik izgube teže'!B27))","v":"2012-12-07"},{"$f":"'Sledilnik izgube teže'!C27","v":176},{"$f":"MAX(ObdobjaGrafikona)","v":"2013-02-22"},172,null,null,{"$f":"IF(I5+1>MAX($B:$B),NA(),I5+1)","v":"2012-12-01"},"2012-12-31",{"$f":"IFERROR(AVERAGEIFS(TabelaKilogramov[TEŽA],TabelaKilogramov[DATUM],\">=\"&H6,TabelaKilogramov[DATUM],\"<=\"&I6),NA())","v":176.55}]
[{"$f":"IF(('Sledilnik izgube teže'!C28=0)*('Sledilnik izgube teže'!C27=0),TRUE)","v":false},{"$f":"IF(A7,0,IF('Sledilnik izgube teže'!B28=0,'Sledilnik izgube teže'!B27+5,'Sledilnik izgube teže'!B28))","v":"2012-12-14"},{"$f":"'Sledilnik izgube teže'!C28","v":177.6},{"$nulls":4},{"$f":"IF(I6+1>MAX($B:$B),NA(),I6+1)","v":"2013-01-01"},"2013-01-31",{"$f":"IFERROR(AVERAGEIFS(TabelaKilogramov[TEŽA],TabelaKilogramov[DATUM],\">=\"&H7,TabelaKilogramov[DATUM],\"<=\"&I7),NA())","v":172.75}]
[{"$f":"IF(('Sledilnik izgube teže'!C29=0)*('Sledilnik izgube teže'!C28=0),TRUE)","v":false},{"$f":"IF(A8,0,IF('Sledilnik izgube teže'!B29=0,'Sledilnik izgube teže'!B28+5,'Sledilnik izgube teže'!B29))","v":"2012-12-21"},{"$f":"'Sledilnik izgube teže'!C29","v":176.5},{"$nulls":4},"2013-02-01","2013-02-28",{"$f":"IFERROR(AVERAGEIFS(TabelaKilogramov[TEŽA],TabelaKilogramov[DATUM],\">=\"&H8,TabelaKilogramov[DATUM],\"<=\"&I8),NA())","v":174}]
[{"$f":"IF(('Sledilnik izgube teže'!C30=0)*('Sledilnik izgube teže'!C29=0),TRUE)","v":false},{"$f":"IF(A9,0,IF('Sledilnik izgube teže'!B30=0,'Sledilnik izgube teže'!B29+5,'Sledilnik izgube teže'!B30))","v":"2012-12-28"},{"$f":"'Sledilnik izgube teže'!C30","v":176.1},{"$nulls":4},{"$error":"#N/A"},{"$error":"#N/A"},{"$f":"IFERROR(AVERAGEIFS(TabelaKilogramov[TEŽA],TabelaKilogramov[DATUM],\">=\"&H9,TabelaKilogramov[DATUM],\"<=\"&I9),NA())","v":{"$error":"#N/A"}}]
[{"$f":"IF(('Sledilnik izgube teže'!C31=0)*('Sledilnik izgube teže'!C30=0),TRUE)","v":false},{"$f":"IF(A10,0,IF('Sledilnik izgube teže'!B31=0,'Sledilnik izgube teže'!B30+5,'Sledilnik izgube teže'!B31))","v":"2013-01-04"},{"$f":"'Sledilnik izgube teže'!C31","v":174},{"$nulls":4},{"$error":"#N/A"},{"$error":"#N/A"},{"$f":"IFERROR(AVERAGEIFS(TabelaKilogramov[TEŽA],TabelaKilogramov[DATUM],\">=\"&H10,TabelaKilogramov[DATUM],\"<=\"&I10),NA())","v":{"$error":"#N/A"}}]
[{"$f":"IF(('Sledilnik izgube teže'!C32=0)*('Sledilnik izgube teže'!C31=0),TRUE)","v":false},{"$f":"IF(A11,0,IF('Sledilnik izgube teže'!B32=0,'Sledilnik izgube teže'!B31+5,'Sledilnik izgube teže'!B32))","v":"2013-01-11"},{"$f":"'Sledilnik izgube teže'!C32","v":173},{"$nulls":4},{"$error":"#N/A"},{"$error":"#N/A"},{"$f":"IFERROR(AVERAGEIFS(TabelaKilogramov[TEŽA],TabelaKilogramov[DATUM],\">=\"&H11,TabelaKilogramov[DATUM],\"<=\"&I11),NA())","v":{"$error":"#N/A"}},{"$nulls":6},{"$f":"MAX($B:$B)","v":"2013-02-22"}]
[{"$f":"IF(('Sledilnik izgube teže'!C33=0)*('Sledilnik izgube teže'!C32=0),TRUE)","v":false},{"$f":"IF(A12,0,IF('Sledilnik izgube teže'!B33=0,'Sledilnik izgube teže'!B32+5,'Sledilnik izgube teže'!B33))","v":"2013-01-18"},{"$f":"'Sledilnik izgube teže'!C33","v":172},{"$nulls":4},{"$error":"#N/A"},{"$error":"#N/A"},{"$f":"IFERROR(AVERAGEIFS(TabelaKilogramov[TEŽA],TabelaKilogramov[DATUM],\">=\"&H12,TabelaKilogramov[DATUM],\"<=\"&I12),NA())","v":{"$error":"#N/A"}}]
[{"$f":"IF(('Sledilnik izgube teže'!C34=0)*('Sledilnik izgube teže'!C33=0),TRUE)","v":false},{"$f":"IF(A13,0,IF('Sledilnik izgube teže'!B34=0,'Sledilnik izgube teže'!B33+5,'Sledilnik izgube teže'!B34))","v":"2013-01-25"},{"$f":"'Sledilnik izgube teže'!C34","v":172},{"$nulls":4},{"$error":"#N/A"},{"$error":"#N/A"},{"$f":"IFERROR(AVERAGEIFS(TabelaKilogramov[TEŽA],TabelaKilogramov[DATUM],\">=\"&H13,TabelaKilogramov[DATUM],\"<=\"&I13),NA())","v":{"$error":"#N/A"}}]
[{"$f":"IF(('Sledilnik izgube teže'!C35=0)*('Sledilnik izgube teže'!C34=0),TRUE)","v":false},{"$f":"IF(A14,0,IF('Sledilnik izgube teže'!B35=0,'Sledilnik izgube teže'!B34+5,'Sledilnik izgube teže'!B35))","v":"2013-02-01"},{"$f":"'Sledilnik izgube teže'!C35","v":173},{"$nulls":4},{"$error":"#N/A"},{"$error":"#N/A"},{"$f":"IFERROR(AVERAGEIFS(TabelaKilogramov[TEŽA],TabelaKilogramov[DATUM],\">=\"&H14,TabelaKilogramov[DATUM],\"<=\"&I14),NA())","v":{"$error":"#N/A"}}]
[{"$f":"IF(('Sledilnik izgube teže'!C36=0)*('Sledilnik izgube teže'!C35=0),TRUE)","v":false},{"$f":"IF(A15,0,IF('Sledilnik izgube teže'!B36=0,'Sledilnik izgube teže'!B35+5,'Sledilnik izgube teže'!B36))","v":"2013-02-08"},{"$f":"'Sledilnik izgube teže'!C36","v":174},{"$nulls":4},{"$error":"#N/A"},{"$error":"#N/A"},{"$f":"IFERROR(AVERAGEIFS(TabelaKilogramov[TEŽA],TabelaKilogramov[DATUM],\">=\"&H15,TabelaKilogramov[DATUM],\"<=\"&I15),NA())","v":{"$error":"#N/A"}}]
[{"$f":"IF(('Sledilnik izgube teže'!C37=0)*('Sledilnik izgube teže'!C36=0),TRUE)","v":false},{"$f":"IF(A16,0,IF('Sledilnik izgube teže'!B37=0,'Sledilnik izgube teže'!B36+5,'Sledilnik izgube teže'!B37))","v":"2013-02-15"},{"$f":"'Sledilnik izgube teže'!C37","v":175},{"$nulls":4},{"$error":"#N/A"},{"$error":"#N/A"},{"$f":"IFERROR(AVERAGEIFS(TabelaKilogramov[TEŽA],TabelaKilogramov[DATUM],\">=\"&H16,TabelaKilogramov[DATUM],\"<=\"&I16),NA())","v":{"$error":"#N/A"}}]
[{"$f":"IF(('Sledilnik izgube teže'!C38=0)*('Sledilnik izgube teže'!C37=0),TRUE)","v":false},{"$f":"IF(A17,0,IF('Sledilnik izgube teže'!B38=0,'Sledilnik izgube teže'!B37+5,'Sledilnik izgube teže'!B38))","v":"2013-02-22"},{"$f":"'Sledilnik izgube teže'!C38","v":0},{"$nulls":4},{"$error":"#N/A"},{"$error":"#N/A"},{"$f":"IFERROR(AVERAGEIFS(TabelaKilogramov[TEŽA],TabelaKilogramov[DATUM],\">=\"&H17,TabelaKilogramov[DATUM],\"<=\"&I17),NA())","v":{"$error":"#N/A"}}]
[{"$f":"IF(('Sledilnik izgube teže'!C39=0)*('Sledilnik izgube teže'!C38=0),TRUE)","v":true},{"$f":"IF(A18,0,IF('Sledilnik izgube teže'!B39=0,'Sledilnik izgube teže'!B38+5,'Sledilnik izgube teže'!B39))","v":"00:00:00"},{"$f":"'Sledilnik izgube teže'!C39","v":0},{"$nulls":4},{"$error":"#N/A"},{"$error":"#N/A"},{"$f":"IFERROR(AVERAGEIFS(TabelaKilogramov[TEŽA],TabelaKilogramov[DATUM],\">=\"&H18,TabelaKilogramov[DATUM],\"<=\"&I18),NA())","v":{"$error":"#N/A"}}]
[{"$f":"IF(('Sledilnik izgube teže'!C40=0)*('Sledilnik izgube teže'!C39=0),TRUE)","v":true},{"$f":"IF(A19,0,IF('Sledilnik izgube teže'!B40=0,'Sledilnik izgube teže'!B39+5,'Sledilnik izgube teže'!B40))","v":"00:00:00"},{"$f":"'Sledilnik izgube teže'!C40","v":0},{"$nulls":4},{"$error":"#N/A"},{"$error":"#N/A"},{"$f":"IFERROR(AVERAGEIFS(TabelaKilogramov[TEŽA],TabelaKilogramov[DATUM],\">=\"&H19,TabelaKilogramov[DATUM],\"<=\"&I19),NA())","v":{"$error":"#N/A"}}]
[{"$f":"IF(('Sledilnik izgube teže'!C41=0)*('Sledilnik izgube teže'!C40=0),TRUE)","v":true},{"$f":"IF(A20,0,IF('Sledilnik izgube teže'!B41=0,'Sledilnik izgube teže'!B40+5,'Sledilnik izgube teže'!B41))","v":"00:00:00"},{"$f":"'Sledilnik izgube teže'!C41","v":0},{"$nulls":4},{"$error":"#N/A"},{"$error":"#N/A"},{"$f":"IFERROR(AVERAGEIFS(TabelaKilogramov[TEŽA],TabelaKilogramov[DATUM],\">=\"&H20,TabelaKilogramov[DATUM],\"<=\"&I20),NA())","v":{"$error":"#N/A"}}]
[{"$f":"IF(('Sledilnik izgube teže'!C42=0)*('Sledilnik izgube teže'!C41=0),TRUE)","v":true},{"$f":"IF(A21,0,IF('Sledilnik izgube teže'!B42=0,'Sledilnik izgube teže'!B41+5,'Sledilnik izgube teže'!B42))","v":"00:00:00"},{"$f":"'Sledilnik izgube teže'!C42","v":0},{"$nulls":4},{"$error":"#N/A"},{"$error":"#N/A"},{"$f":"IFERROR(AVERAGEIFS(TabelaKilogramov[TEŽA],TabelaKilogramov[DATUM],\">=\"&H21,TabelaKilogramov[DATUM],\"<=\"&I21),NA())","v":{"$error":"#N/A"}}]
[{"$f":"IF(('Sledilnik izgube teže'!C43=0)*('Sledilnik izgube teže'!C42=0),TRUE)","v":true},{"$f":"IF(A22,0,IF('Sledilnik izgube teže'!B43=0,'Sledilnik izgube teže'!B42+5,'Sledilnik izgube teže'!B43))","v":"00:00:00"},{"$f":"'Sledilnik izgube teže'!C43","v":0},{"$nulls":4},{"$error":"#N/A"},{"$error":"#N/A"},{"$f":"IFERROR(AVERAGEIFS(TabelaKilogramov[TEŽA],TabelaKilogramov[DATUM],\">=\"&H22,TabelaKilogramov[DATUM],\"<=\"&I22),NA())","v":{"$error":"#N/A"}}]
[{"$f":"IF(('Sledilnik izgube teže'!C44=0)*('Sledilnik izgube teže'!C43=0),TRUE)","v":true},{"$f":"IF(A23,0,IF('Sledilnik izgube teže'!B44=0,'Sledilnik izgube teže'!B43+5,'Sledilnik izgube teže'!B44))","v":"00:00:00"},{"$f":"'Sledilnik izgube teže'!C44","v":0},{"$nulls":4},{"$error":"#N/A"},{"$error":"#N/A"},{"$f":"IFERROR(AVERAGEIFS(TabelaKilogramov[TEŽA],TabelaKilogramov[DATUM],\">=\"&H23,TabelaKilogramov[DATUM],\"<=\"&I23),NA())","v":{"$error":"#N/A"}}]
[{"$f":"IF(('Sledilnik izgube teže'!C45=0)*('Sledilnik izgube teže'!C44=0),TRUE)","v":true},{"$f":"IF(A24,0,IF('Sledilnik izgube teže'!B45=0,'Sledilnik izgube teže'!B44+5,'Sledilnik izgube teže'!B45))","v":"00:00:00"},{"$f":"'Sledilnik izgube teže'!C45","v":0},{"$nulls":4},{"$error":"#N/A"},{"$error":"#N/A"},{"$f":"IFERROR(AVERAGEIFS(TabelaKilogramov[TEŽA],TabelaKilogramov[DATUM],\">=\"&H24,TabelaKilogramov[DATUM],\"<=\"&I24),NA())","v":{"$error":"#N/A"}}]
[{"$f":"IF(('Sledilnik izgube teže'!C46=0)*('Sledilnik izgube teže'!C45=0),TRUE)","v":true},{"$f":"IF(A25,0,IF('Sledilnik izgube teže'!B46=0,'Sledilnik izgube teže'!B45+5,'Sledilnik izgube teže'!B46))","v":"00:00:00"},{"$f":"'Sledilnik izgube teže'!C46","v":0},{"$nulls":4},{"$error":"#N/A"},{"$error":"#N/A"},{"$f":"IFERROR(AVERAGEIFS(TabelaKilogramov[TEŽA],TabelaKilogramov[DATUM],\">=\"&H25,TabelaKilogramov[DATUM],\"<=\"&I25),NA())","v":{"$error":"#N/A"}}]
[{"$f":"IF(('Sledilnik izgube teže'!C47=0)*('Sledilnik izgube teže'!C46=0),TRUE)","v":true},{"$f":"IF(A26,0,IF('Sledilnik izgube teže'!B47=0,'Sledilnik izgube teže'!B46+5,'Sledilnik izgube teže'!B47))","v":"00:00:00"},{"$f":"'Sledilnik izgube teže'!C47","v":0},{"$nulls":4},{"$error":"#N/A"},{"$error":"#N/A"},{"$f":"IFERROR(AVERAGEIFS(TabelaKilogramov[TEŽA],TabelaKilogramov[DATUM],\">=\"&H26,TabelaKilogramov[DATUM],\"<=\"&I26),NA())","v":{"$error":"#N/A"}}]
[{"$f":"IF(('Sledilnik izgube teže'!C48=0)*('Sledilnik izgube teže'!C47=0),TRUE)","v":true},{"$f":"IF(A27,0,IF('Sledilnik izgube teže'!B48=0,'Sledilnik izgube teže'!B47+5,'Sledilnik izgube teže'!B48))","v":"00:00:00"},{"$f":"'Sledilnik izgube teže'!C48","v":0},{"$nulls":4},{"$error":"#N/A"},{"$error":"#N/A"},{"$f":"IFERROR(AVERAGEIFS(TabelaKilogramov[TEŽA],TabelaKilogramov[DATUM],\">=\"&H27,TabelaKilogramov[DATUM],\"<=\"&I27),NA())","v":{"$error":"#N/A"}}]
[{"$f":"IF(('Sledilnik izgube teže'!C49=0)*('Sledilnik izgube teže'!C48=0),TRUE)","v":true},{"$f":"IF(A28,0,IF('Sledilnik izgube teže'!B49=0,'Sledilnik izgube teže'!B48+5,'Sledilnik izgube teže'!B49))","v":"00:00:00"},{"$f":"'Sledilnik izgube teže'!C49","v":0},{"$nulls":4},{"$error":"#N/A"},{"$error":"#N/A"},{"$f":"IFERROR(AVERAGEIFS(TabelaKilogramov[TEŽA],TabelaKilogramov[DATUM],\">=\"&H28,TabelaKilogramov[DATUM],\"<=\"&I28),NA())","v":{"$error":"#N/A"}}]
[{"$f":"IF(('Sledilnik izgube teže'!C50=0)*('Sledilnik izgube teže'!C49=0),TRUE)","v":true},{"$f":"IF(A29,0,IF('Sledilnik izgube teže'!B50=0,'Sledilnik izgube teže'!B49+5,'Sledilnik izgube teže'!B50))","v":"00:00:00"},{"$f":"'Sledilnik izgube teže'!C50","v":0}]
[{"$f":"IF(('Sledilnik izgube teže'!C51=0)*('Sledilnik izgube teže'!C50=0),TRUE)","v":true},{"$f":"IF(A30,0,IF('Sledilnik izgube teže'!B51=0,'Sledilnik izgube teže'!B50+5,'Sledilnik izgube teže'!B51))","v":"00:00:00"},{"$f":"'Sledilnik izgube teže'!C51","v":0}]
[{"$f":"IF(('Sledilnik izgube teže'!C52=0)*('Sledilnik izgube teže'!C51=0),TRUE)","v":true},{"$f":"IF(A31,0,IF('Sledilnik izgube teže'!B52=0,'Sledilnik izgube teže'!B51+5,'Sledilnik izgube teže'!B52))","v":"00:00:00"},{"$f":"'Sledilnik izgube teže'!C52","v":0}]
[{"$f":"IF(('Sledilnik izgube teže'!C53=0)*('Sledilnik izgube teže'!C52=0),TRUE)","v":true},{"$f":"IF(A32,0,IF('Sledilnik izgube teže'!B53=0,'Sledilnik izgube teže'!B52+5,'Sledilnik izgube teže'!B53))","v":"00:00:00"},{"$f":"'Sledilnik izgube teže'!C53","v":0}]
[{"$f":"IF(('Sledilnik izgube teže'!C54=0)*('Sledilnik izgube teže'!C53=0),TRUE)","v":true},{"$f":"IF(A33,0,IF('Sledilnik izgube teže'!B54=0,'Sledilnik izgube teže'!B53+5,'Sledilnik izgube teže'!B54))","v":"00:00:00"},{"$f":"'Sledilnik izgube teže'!C54","v":0}]
[{"$f":"IF(('Sledilnik izgube teže'!C55=0)*('Sledilnik izgube teže'!C54=0),TRUE)","v":true},{"$f":"IF(A34,0,IF('Sledilnik izgube teže'!B55=0,'Sledilnik izgube teže'!B54+5,'Sledilnik izgube teže'!B55))","v":"00:00:00"},{"$f":"'Sledilnik izgube teže'!C55","v":0}]
[{"$f":"IF(('Sledilnik izgube teže'!C56=0)*('Sledilnik izgube teže'!C55=0),TRUE)","v":true},{"$f":"IF(A35,0,IF('Sledilnik izgube teže'!B56=0,'Sledilnik izgube teže'!B55+5,'Sledilnik izgube teže'!B56))","v":"00:00:00"},{"$f":"'Sledilnik izgube teže'!C56","v":0}]
[{"$f":"IF(('Sledilnik izgube teže'!C57=0)*('Sledilnik izgube teže'!C56=0),TRUE)","v":true},{"$f":"IF(A36,0,IF('Sledilnik izgube teže'!B57=0,'Sledilnik izgube teže'!B56+5,'Sledilnik izgube teže'!B57))","v":"00:00:00"},{"$f":"'Sledilnik izgube teže'!C57","v":0}]
[{"$f":"IF(('Sledilnik izgube teže'!C58=0)*('Sledilnik izgube teže'!C57=0),TRUE)","v":true},{"$f":"IF(A37,0,IF('Sledilnik izgube teže'!B58=0,'Sledilnik izgube teže'!B57+5,'Sledilnik izgube teže'!B58))","v":"00:00:00"},{"$f":"'Sledilnik izgube teže'!C58","v":0}]
[{"$f":"IF(('Sledilnik izgube teže'!C59=0)*('Sledilnik izgube teže'!C58=0),TRUE)","v":true},{"$f":"IF(A38,0,IF('Sledilnik izgube teže'!B59=0,'Sledilnik izgube teže'!B58+5,'Sledilnik izgube teže'!B59))","v":"00:00:00"},{"$f":"'Sledilnik izgube teže'!C59","v":0}]
[{"$f":"IF(('Sledilnik izgube teže'!C60=0)*('Sledilnik izgube teže'!C59=0),TRUE)","v":true},{"$f":"IF(A39,0,IF('Sledilnik izgube teže'!B60=0,'Sledilnik izgube teže'!B59+5,'Sledilnik izgube teže'!B60))","v":"00:00:00"},{"$f":"'Sledilnik izgube teže'!C60","v":0}]
[{"$f":"IF(('Sledilnik izgube teže'!C61=0)*('Sledilnik izgube teže'!C60=0),TRUE)","v":true},{"$f":"IF(A40,0,IF('Sledilnik izgube teže'!B61=0,'Sledilnik izgube teže'!B60+5,'Sledilnik izgube teže'!B61))","v":"00:00:00"},{"$f":"'Sledilnik izgube teže'!C61","v":0}]
[{"$f":"IF(('Sledilnik izgube teže'!C62=0)*('Sledilnik izgube teže'!C61=0),TRUE)","v":true},{"$f":"IF(A41,0,IF('Sledilnik izgube teže'!B62=0,'Sledilnik izgube teže'!B61+5,'Sledilnik izgube teže'!B62))","v":"00:00:00"},{"$f":"'Sledilnik izgube teže'!C62","v":0}]
[{"$f":"IF(('Sledilnik izgube teže'!C63=0)*('Sledilnik izgube teže'!C62=0),TRUE)","v":true},{"$f":"IF(A42,0,IF('Sledilnik izgube teže'!B63=0,'Sledilnik izgube teže'!B62+5,'Sledilnik izgube teže'!B63))","v":"00:00:00"},{"$f":"'Sledilnik izgube teže'!C63","v":0}]
[{"$f":"IF(('Sledilnik izgube teže'!C64=0)*('Sledilnik izgube teže'!C63=0),TRUE)","v":true},{"$f":"IF(A43,0,IF('Sledilnik izgube teže'!B64=0,'Sledilnik izgube teže'!B63+5,'Sledilnik izgube teže'!B64))","v":"00:00:00"},{"$f":"'Sledilnik izgube teže'!C64","v":0}]
[{"$f":"IF(('Sledilnik izgube teže'!C65=0)*('Sledilnik izgube teže'!C64=0),TRUE)","v":true},{"$f":"IF(A44,0,IF('Sledilnik izgube teže'!B65=0,'Sledilnik izgube teže'!B64+5,'Sledilnik izgube teže'!B65))","v":"00:00:00"},{"$f":"'Sledilnik izgube teže'!C65","v":0}]
[{"$f":"IF(('Sledilnik izgube teže'!C66=0)*('Sledilnik izgube teže'!C65=0),TRUE)","v":true},{"$f":"IF(A45,0,IF('Sledilnik izgube teže'!B66=0,'Sledilnik izgube teže'!B65+5,'Sledilnik izgube teže'!B66))","v":"00:00:00"},{"$f":"'Sledilnik izgube teže'!C66","v":0}]
[{"$f":"IF(('Sledilnik izgube teže'!C67=0)*('Sledilnik izgube teže'!C66=0),TRUE)","v":true},{"$f":"IF(A46,0,IF('Sledilnik izgube teže'!B67=0,'Sledilnik izgube teže'!B66+5,'Sledilnik izgube teže'!B67))","v":"00:00:00"},{"$f":"'Sledilnik izgube teže'!C67","v":0}]
[{"$f":"IF(('Sledilnik izgube teže'!C68=0)*('Sledilnik izgube teže'!C67=0),TRUE)","v":true},{"$f":"IF(A47,0,IF('Sledilnik izgube teže'!B68=0,'Sledilnik izgube teže'!B67+5,'Sledilnik izgube teže'!B68))","v":"00:00:00"},{"$f":"'Sledilnik izgube teže'!C68","v":0}]
[{"$f":"IF(('Sledilnik izgube teže'!C69=0)*('Sledilnik izgube teže'!C68=0),TRUE)","v":true},{"$f":"IF(A48,0,IF('Sledilnik izgube teže'!B69=0,'Sledilnik izgube teže'!B68+5,'Sledilnik izgube teže'!B69))","v":"00:00:00"},{"$f":"'Sledilnik izgube teže'!C69","v":0}]
[{"$f":"IF(('Sledilnik izgube teže'!C70=0)*('Sledilnik izgube teže'!C69=0),TRUE)","v":true},{"$f":"IF(A49,0,IF('Sledilnik izgube teže'!B70=0,'Sledilnik izgube teže'!B69+5,'Sledilnik izgube teže'!B70))","v":"00:00:00"},{"$f":"'Sledilnik izgube teže'!C70","v":0}]
[{"$f":"IF(('Sledilnik izgube teže'!C71=0)*('Sledilnik izgube teže'!C70=0),TRUE)","v":true},{"$f":"IF(A50,0,IF('Sledilnik izgube teže'!B71=0,'Sledilnik izgube teže'!B70+5,'Sledilnik izgube teže'!B71))","v":"00:00:00"},{"$f":"'Sledilnik izgube teže'!C71","v":0}]
[{"$f":"IF(('Sledilnik izgube teže'!C72=0)*('Sledilnik izgube teže'!C71=0),TRUE)","v":true},{"$f":"IF(A51,0,IF('Sledilnik izgube teže'!B72=0,'Sledilnik izgube teže'!B71+5,'Sledilnik izgube teže'!B72))","v":"00:00:00"},{"$f":"'Sledilnik izgube teže'!C72","v":0}]
[{"$f":"IF(('Sledilnik izgube teže'!C73=0)*('Sledilnik izgube teže'!C72=0),TRUE)","v":true},{"$f":"IF(A52,0,IF('Sledilnik izgube teže'!B73=0,'Sledilnik izgube teže'!B72+5,'Sledilnik izgube teže'!B73))","v":"00:00:00"},{"$f":"'Sledilnik izgube teže'!C73","v":0}]
[{"$f":"IF(('Sledilnik izgube teže'!C74=0)*('Sledilnik izgube teže'!C73=0),TRUE)","v":true},{"$f":"IF(A53,0,IF('Sledilnik izgube teže'!B74=0,'Sledilnik izgube teže'!B73+5,'Sledilnik izgube teže'!B74))","v":"00:00:00"},{"$f":"'Sledilnik izgube teže'!C74","v":0}]
[{"$f":"IF(('Sledilnik izgube teže'!C75=0)*('Sledilnik izgube teže'!C74=0),TRUE)","v":true},{"$f":"IF(A54,0,IF('Sledilnik izgube teže'!B75=0,'Sledilnik izgube teže'!B74+5,'Sledilnik izgube teže'!B75))","v":"00:00:00"},{"$f":"'Sledilnik izgube teže'!C75","v":0}]
[{"$f":"IF(('Sledilnik izgube teže'!C76=0)*('Sledilnik izgube teže'!C75=0),TRUE)","v":true},{"$f":"IF(A55,0,IF('Sledilnik izgube teže'!B76=0,'Sledilnik izgube teže'!B75+5,'Sledilnik izgube teže'!B76))","v":"00:00:00"},{"$f":"'Sledilnik izgube teže'!C76","v":0}]
[{"$f":"IF(('Sledilnik izgube teže'!C77=0)*('Sledilnik izgube teže'!C76=0),TRUE)","v":true},{"$f":"IF(A56,0,IF('Sledilnik izgube teže'!B77=0,'Sledilnik izgube teže'!B76+5,'Sledilnik izgube teže'!B77))","v":"00:00:00"},{"$f":"'Sledilnik izgube teže'!C77","v":0}]
[{"$f":"IF(('Sledilnik izgube teže'!C78=0)*('Sledilnik izgube teže'!C77=0),TRUE)","v":true},{"$f":"IF(A57,0,IF('Sledilnik izgube teže'!B78=0,'Sledilnik izgube teže'!B77+5,'Sledilnik izgube teže'!B78))","v":"00:00:00"},{"$f":"'Sledilnik izgube teže'!C78","v":0}]
[{"$f":"IF(('Sledilnik izgube teže'!C79=0)*('Sledilnik izgube teže'!C78=0),TRUE)","v":true},{"$f":"IF(A58,0,IF('Sledilnik izgube teže'!B79=0,'Sledilnik izgube teže'!B78+5,'Sledilnik izgube teže'!B79))","v":"00:00:00"},{"$f":"'Sledilnik izgube teže'!C79","v":0}]
[{"$f":"IF(('Sledilnik izgube teže'!C80=0)*('Sledilnik izgube teže'!C79=0),TRUE)","v":true},{"$f":"IF(A59,0,IF('Sledilnik izgube teže'!B80=0,'Sledilnik izgube teže'!B79+5,'Sledilnik izgube teže'!B80))","v":"00:00:00"},{"$f":"'Sledilnik izgube teže'!C80","v":0}]
[{"$f":"IF(('Sledilnik izgube teže'!C81=0)*('Sledilnik izgube teže'!C80=0),TRUE)","v":true},{"$f":"IF(A60,0,IF('Sledilnik izgube teže'!B81=0,'Sledilnik izgube teže'!B80+5,'Sledilnik izgube teže'!B81))","v":"00:00:00"},{"$f":"'Sledilnik izgube teže'!C81","v":0}]
[{"$f":"IF(('Sledilnik izgube teže'!C82=0)*('Sledilnik izgube teže'!C81=0),TRUE)","v":true},{"$f":"IF(A61,0,IF('Sledilnik izgube teže'!B82=0,'Sledilnik izgube teže'!B81+5,'Sledilnik izgube teže'!B82))","v":"00:00:00"},{"$f":"'Sledilnik izgube teže'!C82","v":0}]
[{"$f":"IF(('Sledilnik izgube teže'!C83=0)*('Sledilnik izgube teže'!C82=0),TRUE)","v":true},{"$f":"IF(A62,0,IF('Sledilnik izgube teže'!B83=0,'Sledilnik izgube teže'!B82+5,'Sledilnik izgube teže'!B83))","v":"00:00:00"},{"$f":"'Sledilnik izgube teže'!C83","v":0}]
[{"$f":"IF(('Sledilnik izgube teže'!C84=0)*('Sledilnik izgube teže'!C83=0),TRUE)","v":true},{"$f":"IF(A63,0,IF('Sledilnik izgube teže'!B84=0,'Sledilnik izgube teže'!B83+5,'Sledilnik izgube teže'!B84))","v":"00:00:00"},{"$f":"'Sledilnik izgube teže'!C84","v":0}]
[{"$f":"IF(('Sledilnik izgube teže'!C85=0)*('Sledilnik izgube teže'!C84=0),TRUE)","v":true},{"$f":"IF(A64,0,IF('Sledilnik izgube teže'!B85=0,'Sledilnik izgube teže'!B84+5,'Sledilnik izgube teže'!B85))","v":"00:00:00"},{"$f":"'Sledilnik izgube teže'!C85","v":0}]
[{"$f":"IF(('Sledilnik izgube teže'!C86=0)*('Sledilnik izgube teže'!C85=0),TRUE)","v":true},{"$f":"IF(A65,0,IF('Sledilnik izgube teže'!B86=0,'Sledilnik izgube teže'!B85+5,'Sledilnik izgube teže'!B86))","v":"00:00:00"},{"$f":"'Sledilnik izgube teže'!C86","v":0}]
[{"$f":"IF(('Sledilnik izgube teže'!C87=0)*('Sledilnik izgube teže'!C86=0),TRUE)","v":true},{"$f":"IF(A66,0,IF('Sledilnik izgube teže'!B87=0,'Sledilnik izgube teže'!B86+5,'Sledilnik izgube teže'!B87))","v":"00:00:00"},{"$f":"'Sledilnik izgube teže'!C87","v":0}]
[{"$f":"IF(('Sledilnik izgube teže'!C88=0)*('Sledilnik izgube teže'!C87=0),TRUE)","v":true},{"$f":"IF(A67,0,IF('Sledilnik izgube teže'!B88=0,'Sledilnik izgube teže'!B87+5,'Sledilnik izgube teže'!B88))","v":"00:00:00"},{"$f":"'Sledilnik izgube teže'!C88","v":0}]
[{"$f":"IF(('Sledilnik izgube teže'!C89=0)*('Sledilnik izgube teže'!C88=0),TRUE)","v":true},{"$f":"IF(A68,0,IF('Sledilnik izgube teže'!B89=0,'Sledilnik izgube teže'!B88+5,'Sledilnik izgube teže'!B89))","v":"00:00:00"},{"$f":"'Sledilnik izgube teže'!C89","v":0}]
[{"$f":"IF(('Sledilnik izgube teže'!C90=0)*('Sledilnik izgube teže'!C89=0),TRUE)","v":true},{"$f":"IF(A69,0,IF('Sledilnik izgube teže'!B90=0,'Sledilnik izgube teže'!B89+5,'Sledilnik izgube teže'!B90))","v":"00:00:00"},{"$f":"'Sledilnik izgube teže'!C90","v":0}]
[{"$f":"IF(('Sledilnik izgube teže'!C91=0)*('Sledilnik izgube teže'!C90=0),TRUE)","v":true},{"$f":"IF(A70,0,IF('Sledilnik izgube teže'!B91=0,'Sledilnik izgube teže'!B90+5,'Sledilnik izgube teže'!B91))","v":"00:00:00"},{"$f":"'Sledilnik izgube teže'!C91","v":0}]
[{"$f":"IF(('Sledilnik izgube teže'!C92=0)*('Sledilnik izgube teže'!C91=0),TRUE)","v":true},{"$f":"IF(A71,0,IF('Sledilnik izgube teže'!B92=0,'Sledilnik izgube teže'!B91+5,'Sledilnik izgube teže'!B92))","v":"00:00:00"},{"$f":"'Sledilnik izgube teže'!C92","v":0}]
[{"$f":"IF(('Sledilnik izgube teže'!C93=0)*('Sledilnik izgube teže'!C92=0),TRUE)","v":true},{"$f":"IF(A72,0,IF('Sledilnik izgube teže'!B93=0,'Sledilnik izgube teže'!B92+5,'Sledilnik izgube teže'!B93))","v":"00:00:00"},{"$f":"'Sledilnik izgube teže'!C93","v":0}]
[{"$f":"IF(('Sledilnik izgube teže'!C94=0)*('Sledilnik izgube teže'!C93=0),TRUE)","v":true},{"$f":"IF(A73,0,IF('Sledilnik izgube teže'!B94=0,'Sledilnik izgube teže'!B93+5,'Sledilnik izgube teže'!B94))","v":"00:00:00"},{"$f":"'Sledilnik izgube teže'!C94","v":0}]
[{"$f":"IF(('Sledilnik izgube teže'!C95=0)*('Sledilnik izgube teže'!C94=0),TRUE)","v":true},{"$f":"IF(A74,0,IF('Sledilnik izgube teže'!B95=0,'Sledilnik izgube teže'!B94+5,'Sledilnik izgube teže'!B95))","v":"00:00:00"},{"$f":"'Sledilnik izgube teže'!C95","v":0}]
[{"$f":"IF(('Sledilnik izgube teže'!C96=0)*('Sledilnik izgube teže'!C95=0),TRUE)","v":true},{"$f":"IF(A75,0,IF('Sledilnik izgube teže'!B96=0,'Sledilnik izgube teže'!B95+5,'Sledilnik izgube teže'!B96))","v":"00:00:00"},{"$f":"'Sledilnik izgube teže'!C96","v":0}]
[{"$f":"IF(('Sledilnik izgube teže'!C97=0)*('Sledilnik izgube teže'!C96=0),TRUE)","v":true},{"$f":"IF(A76,0,IF('Sledilnik izgube teže'!B97=0,'Sledilnik izgube teže'!B96+5,'Sledilnik izgube teže'!B97))","v":"00:00:00"},{"$f":"'Sledilnik izgube teže'!C97","v":0}]
[{"$f":"IF(('Sledilnik izgube teže'!C98=0)*('Sledilnik izgube teže'!C97=0),TRUE)","v":true},{"$f":"IF(A77,0,IF('Sledilnik izgube teže'!B98=0,'Sledilnik izgube teže'!B97+5,'Sledilnik izgube teže'!B98))","v":"00:00:00"},{"$f":"'Sledilnik izgube teže'!C98","v":0}]
[{"$f":"IF(('Sledilnik izgube teže'!C99=0)*('Sledilnik izgube teže'!C98=0),TRUE)","v":true},{"$f":"IF(A78,0,IF('Sledilnik izgube teže'!B99=0,'Sledilnik izgube teže'!B98+5,'Sledilnik izgube teže'!B99))","v":"00:00:00"},{"$f":"'Sledilnik izgube teže'!C99","v":0}]
[{"$f":"IF(('Sledilnik izgube teže'!C100=0)*('Sledilnik izgube teže'!C99=0),TRUE)","v":true},{"$f":"IF(A79,0,IF('Sledilnik izgube teže'!B100=0,'Sledilnik izgube teže'!B99+5,'Sledilnik izgube teže'!B100))","v":"00:00:00"},{"$f":"'Sledilnik izgube teže'!C100","v":0}]
[{"$f":"IF(('Sledilnik izgube teže'!C101=0)*('Sledilnik izgube teže'!C100=0),TRUE)","v":true},{"$f":"IF(A80,0,IF('Sledilnik izgube teže'!B101=0,'Sledilnik izgube teže'!B100+5,'Sledilnik izgube teže'!B101))","v":"00:00:00"},{"$f":"'Sledilnik izgube teže'!C101","v":0}]
[{"$f":"IF(('Sledilnik izgube teže'!C102=0)*('Sledilnik izgube teže'!C101=0),TRUE)","v":true},{"$f":"IF(A81,0,IF('Sledilnik izgube teže'!B102=0,'Sledilnik izgube teže'!B101+5,'Sledilnik izgube teže'!B102))","v":"00:00:00"},{"$f":"'Sledilnik izgube teže'!C102","v":0}]
[{"$f":"IF(('Sledilnik izgube teže'!C103=0)*('Sledilnik izgube teže'!C102=0),TRUE)","v":true},{"$f":"IF(A82,0,IF('Sledilnik izgube teže'!B103=0,'Sledilnik izgube teže'!B102+5,'Sledilnik izgube teže'!B103))","v":"00:00:00"},{"$f":"'Sledilnik izgube teže'!C103","v":0}]
[{"$f":"IF(('Sledilnik izgube teže'!C104=0)*('Sledilnik izgube teže'!C103=0),TRUE)","v":true},{"$f":"IF(A83,0,IF('Sledilnik izgube teže'!B104=0,'Sledilnik izgube teže'!B103+5,'Sledilnik izgube teže'!B104))","v":"00:00:00"},{"$f":"'Sledilnik izgube teže'!C104","v":0}]
[{"$f":"IF(('Sledilnik izgube teže'!C105=0)*('Sledilnik izgube teže'!C104=0),TRUE)","v":true},{"$f":"IF(A84,0,IF('Sledilnik izgube teže'!B105=0,'Sledilnik izgube teže'!B104+5,'Sledilnik izgube teže'!B105))","v":"00:00:00"},{"$f":"'Sledilnik izgube teže'!C105","v":0}]
[{"$f":"IF(('Sledilnik izgube teže'!C106=0)*('Sledilnik izgube teže'!C105=0),TRUE)","v":true},{"$f":"IF(A85,0,IF('Sledilnik izgube teže'!B106=0,'Sledilnik izgube teže'!B105+5,'Sledilnik izgube teže'!B106))","v":"00:00:00"},{"$f":"'Sledilnik izgube teže'!C106","v":0}]
[{"$f":"IF(('Sledilnik izgube teže'!C107=0)*('Sledilnik izgube teže'!C106=0),TRUE)","v":true},{"$f":"IF(A86,0,IF('Sledilnik izgube teže'!B107=0,'Sledilnik izgube teže'!B106+5,'Sledilnik izgube teže'!B107))","v":"00:00:00"},{"$f":"'Sledilnik izgube teže'!C107","v":0}]
[{"$f":"IF(('Sledilnik izgube teže'!C108=0)*('Sledilnik izgube teže'!C107=0),TRUE)","v":true},{"$f":"IF(A87,0,IF('Sledilnik izgube teže'!B108=0,'Sledilnik izgube teže'!B107+5,'Sledilnik izgube teže'!B108))","v":"00:00:00"},{"$f":"'Sledilnik izgube teže'!C108","v":0}]
[{"$f":"IF(('Sledilnik izgube teže'!C109=0)*('Sledilnik izgube teže'!C108=0),TRUE)","v":true},{"$f":"IF(A88,0,IF('Sledilnik izgube teže'!B109=0,'Sledilnik izgube teže'!B108+5,'Sledilnik izgube teže'!B109))","v":"00:00:00"},{"$f":"'Sledilnik izgube teže'!C109","v":0}]
[{"$f":"IF(('Sledilnik izgube teže'!C110=0)*('Sledilnik izgube teže'!C109=0),TRUE)","v":true},{"$f":"IF(A89,0,IF('Sledilnik izgube teže'!B110=0,'Sledilnik izgube teže'!B109+5,'Sledilnik izgube teže'!B110))","v":"00:00:00"},{"$f":"'Sledilnik izgube teže'!C110","v":0}]
[{"$f":"IF(('Sledilnik izgube teže'!C111=0)*('Sledilnik izgube teže'!C110=0),TRUE)","v":true},{"$f":"IF(A90,0,IF('Sledilnik izgube teže'!B111=0,'Sledilnik izgube teže'!B110+5,'Sledilnik izgube teže'!B111))","v":"00:00:00"},{"$f":"'Sledilnik izgube teže'!C111","v":0}]
[{"$f":"IF(('Sledilnik izgube teže'!C112=0)*('Sledilnik izgube teže'!C111=0),TRUE)","v":true},{"$f":"IF(A91,0,IF('Sledilnik izgube teže'!B112=0,'Sledilnik izgube teže'!B111+5,'Sledilnik izgube teže'!B112))","v":"00:00:00"},{"$f":"'Sledilnik izgube teže'!C112","v":0}]
[{"$f":"IF(('Sledilnik izgube teže'!C113=0)*('Sledilnik izgube teže'!C112=0),TRUE)","v":true},{"$f":"IF(A92,0,IF('Sledilnik izgube teže'!B113=0,'Sledilnik izgube teže'!B112+5,'Sledilnik izgube teže'!B113))","v":"00:00:00"},{"$f":"'Sledilnik izgube teže'!C113","v":0}]
[{"$f":"IF(('Sledilnik izgube teže'!C114=0)*('Sledilnik izgube teže'!C113=0),TRUE)","v":true},{"$f":"IF(A93,0,IF('Sledilnik izgube teže'!B114=0,'Sledilnik izgube teže'!B113+5,'Sledilnik izgube teže'!B114))","v":"00:00:00"},{"$f":"'Sledilnik izgube teže'!C114","v":0}]
[{"$f":"IF(('Sledilnik izgube teže'!C115=0)*('Sledilnik izgube teže'!C114=0),TRUE)","v":true},{"$f":"IF(A94,0,IF('Sledilnik izgube teže'!B115=0,'Sledilnik izgube teže'!B114+5,'Sledilnik izgube teže'!B115))","v":"00:00:00"},{"$f":"'Sledilnik izgube teže'!C115","v":0}]
[{"$f":"IF(('Sledilnik izgube teže'!C116=0)*('Sledilnik izgube teže'!C115=0),TRUE)","v":true},{"$f":"IF(A95,0,IF('Sledilnik izgube teže'!B116=0,'Sledilnik izgube teže'!B115+5,'Sledilnik izgube teže'!B116))","v":"00:00:00"},{"$f":"'Sledilnik izgube teže'!C116","v":0}]
[{"$f":"IF(('Sledilnik izgube teže'!C117=0)*('Sledilnik izgube teže'!C116=0),TRUE)","v":true},{"$f":"IF(A96,0,IF('Sledilnik izgube teže'!B117=0,'Sledilnik izgube teže'!B116+5,'Sledilnik izgube teže'!B117))","v":"00:00:00"},{"$f":"'Sledilnik izgube teže'!C117","v":0}]
[{"$f":"IF(('Sledilnik izgube teže'!C118=0)*('Sledilnik izgube teže'!C117=0),TRUE)","v":true},{"$f":"IF(A97,0,IF('Sledilnik izgube teže'!B118=0,'Sledilnik izgube teže'!B117+5,'Sledilnik izgube teže'!B118))","v":"00:00:00"},{"$f":"'Sledilnik izgube teže'!C118","v":0}]
[{"$f":"IF(('Sledilnik izgube teže'!C119=0)*('Sledilnik izgube teže'!C118=0),TRUE)","v":true},{"$f":"IF(A98,0,IF('Sledilnik izgube teže'!B119=0,'Sledilnik izgube teže'!B118+5,'Sledilnik izgube teže'!B119))","v":"00:00:00"},{"$f":"'Sledilnik izgube teže'!C119","v":0}]
[{"$f":"IF(('Sledilnik izgube teže'!C120=0)*('Sledilnik izgube teže'!C119=0),TRUE)","v":true},{"$f":"IF(A99,0,IF('Sledilnik izgube teže'!B120=0,'Sledilnik izgube teže'!B119+5,'Sledilnik izgube teže'!B120))","v":"00:00:00"},{"$f":"'Sledilnik izgube teže'!C120","v":0}]
[{"$f":"IF(('Sledilnik izgube teže'!C121=0)*('Sledilnik izgube teže'!C120=0),TRUE)","v":true},{"$f":"IF(A100,0,IF('Sledilnik izgube teže'!B121=0,'Sledilnik izgube teže'!B120+5,'Sledilnik izgube teže'!B121))","v":"00:00:00"},{"$f":"'Sledilnik izgube teže'!C121","v":0}]
[{"$f":"IF(('Sledilnik izgube teže'!C122=0)*('Sledilnik izgube teže'!C121=0),TRUE)","v":true},{"$f":"IF(A101,0,IF('Sledilnik izgube teže'!B122=0,'Sledilnik izgube teže'!B121+5,'Sledilnik izgube teže'!B122))","v":"00:00:00"},{"$f":"'Sledilnik izgube teže'!C122","v":0}]
[{"$f":"IF(('Sledilnik izgube teže'!C123=0)*('Sledilnik izgube teže'!C122=0),TRUE)","v":true},{"$f":"IF(A102,0,IF('Sledilnik izgube teže'!B123=0,'Sledilnik izgube teže'!B122+5,'Sledilnik izgube teže'!B123))","v":"00:00:00"},{"$f":"'Sledilnik izgube teže'!C123","v":0}]
[{"$f":"IF(('Sledilnik izgube teže'!C124=0)*('Sledilnik izgube teže'!C123=0),TRUE)","v":true},{"$f":"IF(A103,0,IF('Sledilnik izgube teže'!B124=0,'Sledilnik izgube teže'!B123+5,'Sledilnik izgube teže'!B124))","v":"00:00:00"},{"$f":"'Sledilnik izgube teže'!C124","v":0}]
[{"$f":"IF(('Sledilnik izgube teže'!C125=0)*('Sledilnik izgube teže'!C124=0),TRUE)","v":true},{"$f":"IF(A104,0,IF('Sledilnik izgube teže'!B125=0,'Sledilnik izgube teže'!B124+5,'Sledilnik izgube teže'!B125))","v":"00:00:00"},{"$f":"'Sledilnik izgube teže'!C125","v":0}]
[{"$f":"IF(('Sledilnik izgube teže'!C126=0)*('Sledilnik izgube teže'!C125=0),TRUE)","v":true},{"$f":"IF(A105,0,IF('Sledilnik izgube teže'!B126=0,'Sledilnik izgube teže'!B125+5,'Sledilnik izgube teže'!B126))","v":"00:00:00"},{"$f":"'Sledilnik izgube teže'!C126","v":0}]
[{"$f":"IF(('Sledilnik izgube teže'!C127=0)*('Sledilnik izgube teže'!C126=0),TRUE)","v":true},{"$f":"IF(A106,0,IF('Sledilnik izgube teže'!B127=0,'Sledilnik izgube teže'!B126+5,'Sledilnik izgube teže'!B127))","v":"00:00:00"},{"$f":"'Sledilnik izgube teže'!C127","v":0}]
[{"$f":"IF(('Sledilnik izgube teže'!C128=0)*('Sledilnik izgube teže'!C127=0),TRUE)","v":true},{"$f":"IF(A107,0,IF('Sledilnik izgube teže'!B128=0,'Sledilnik izgube teže'!B127+5,'Sledilnik izgube teže'!B128))","v":"00:00:00"},{"$f":"'Sledilnik izgube teže'!C128","v":0}]
[{"$f":"IF(('Sledilnik izgube teže'!C129=0)*('Sledilnik izgube teže'!C128=0),TRUE)","v":true},{"$f":"IF(A108,0,IF('Sledilnik izgube teže'!B129=0,'Sledilnik izgube teže'!B128+5,'Sledilnik izgube teže'!B129))","v":"00:00:00"},{"$f":"'Sledilnik izgube teže'!C129","v":0}]